fUSD/lending_fUSD_20251108
["ID","MTS","AMOUNT","RATE_DAILY","PERIOD"]
[393391760,1762576070308,4000.0,0.00015,2]
[393391761,1762576070335,1408.20308009,0.00015,2]
[393391762,1762576070360,6598.38207107,0.00015,2]
[393391763,1762576070389,25682.31399709,0.00015,2]
[393391768,1762576111565,4458.28082449,0.00014999,2]
[393391769,1762576115920,5541.72917551,0.00015,3]
[393391770,1762576115946,4861.3298297,0.00015,3]
[393391781,1762576231734,-185.86059966,0.000162,5]
[393391783,1762576231748,-200.0,0.0001644,2]
[393391785,1762576231758,-2209.33,0.00016468,2]
[393391787,1762576231768,-156.47157791,0.00016469,2]
[393391789,1762576231778,-806.66,0.00016482,2]
[393391790,1762576231788,-201.92,0.00016569,2]
[393391791,1762576231797,-1274.0,0.0001685,2]
[393391792,1762576231807,-1274.0,0.00016912,2]
[393391793,1762576231819,-1274.0,0.00016936,2]
[393391794,1762576231829,-1200.0,0.00016947,2]
[393391795,1762576231839,-1274.0,0.00016948,2]
[393391796,1762576231848,-164.0,0.00016978,2]
[393391797,1762576231859,-181.28,0.00016993,2]
[393391798,1762576231869,-300.0,0.00016998,2]
[393391799,1762576231878,-300.0,0.00016998,2]
[393391800,1762576231889,-300.0,0.00016998,2]
[393391801,1762576231899,-1274.0,0.00016999,2]
[393391802,1762576231909,-1274.0,0.00017027,2]
[393391803,1762576231919,-1274.0,0.00017071,2]
[393391804,1762576231928,-1274.0,0.00017213,2]
[393391805,1762576231938,-168.0,0.00017302,2]
[393391806,1762576231948,-1274.0,0.00017323,2]
[393391807,1762576231966,-1274.0,0.00017345,2]
[393391808,1762576231977,-1274.0,0.00017396,2]
[393391809,1762576231987,-300.0,0.00017397,2]
[393391810,1762576231997,-500.0,0.00017397,2]
[393391811,1762576232007,-2300.0,0.000174,6]
[393391812,1762576232018,-1274.0,0.00017433,2]
[393391813,1762576232027,-1274.0,0.00017472,2]
[393391814,1762576232037,-4600.0,0.000175,6]
[393391815,1762576232047,-6900.0,0.000176,6]
[393391816,1762576232057,-253.7913,0.00017648,2]
[393391817,1762576232068,-279.8372,0.000177,2]
[393391818,1762576232078,-9200.0,0.000177,6]
[393391820,1762576232087,-2500.0,0.000177,2]
[393391821,1762576232097,-18350.13857032,0.000177,2]
[393391822,1762576232107,-413.87350279,0.000177,2]
[393391823,1762576232116,-893.73840764,0.0001771,2]
[393391824,1762576232125,-1675.26441,0.0001772,2]
[393391826,1762576232135,-18350.13857029,0.00017722,2]
[393391827,1762576232144,-500.0,0.00017726,2]
[393391828,1762576232154,-221.8861932,0.00017732,2]
[393391829,1762576232164,-18350.13857029,0.00017744,2]
[393391830,1762576232173,-694.0,0.00017748,2]
[393391831,1762576232182,-18350.13857029,0.00017767,2]
[393391832,1762576232192,-500.7693364,0.00017773,2]
[393391833,1762576232202,-17400.07402788,0.00017789,2]
[393391834,1762576232215,-950.06454241,0.00017789,2]
[393391836,1762576232224,-304.35354436,0.00017799,2]
[393391839,1762576232444,-195.64645564,0.00017799,2]
[393391840,1762576232454,-218.64477843,0.00017799,2]
[393391841,1762576232481,-281.35522157,0.00017799,2]
[393391842,1762576232492,-500.0,0.00017799,2]
[393391843,1762576232501,-500.0,0.00017799,2]
[393391844,1762576232512,-500.0,0.00017799,2]
[393391845,1762576232521,-500.0,0.00017799,2]
[393391846,1762576232531,-500.0,0.00017799,2]
[393391847,1762576232542,-404.56637317,0.00017799,2]
[393391848,1762576232551,-500.0,0.00017799,2]
[393391849,1762576232562,-500.0,0.00017799,2]
[393391850,1762576232572,-500.0,0.00017799,2]
[393391851,1762576232582,-500.0,0.00017799,2]
[393391852,1762576232592,-500.0,0.00017799,2]
[393391853,1762576232601,-500.0,0.00017799,2]
[393391854,1762576232611,-500.0,0.00017799,2]
[393391855,1762576232621,-500.0,0.00017799,2]
[393391856,1762576232631,-500.0,0.00017799,2]
[393391857,1762576232640,-500.0,0.00017799,2]
[393391858,1762576232651,-500.0,0.00017799,2]
[393391859,1762576232664,-500.0,0.00017799,2]
[393391860,1762576232675,-500.0,0.00017799,2]
[393391861,1762576232686,-500.0,0.00017799,2]
[393391862,1762576232696,-500.0,0.00017799,2]
[393391863,1762576232707,-214.59420689,0.00017799,2]
[393391864,1762576232716,-500.0,0.00017799,2]
[393391865,1762576232726,-500.0,0.00017799,2]
[393391866,1762576232737,-500.0,0.00017799,2]
[393391867,1762576232748,-500.0,0.00017799,2]
[393391868,1762576232758,-500.0,0.00017799,2]
[393391869,1762576232768,-500.0,0.00017799,2]
[393391870,1762576232778,-500.0,0.00017799,2]
[393391871,1762576232787,-1000.0,0.000178,2]
[393391872,1762576232797,-168924.2139552,0.000178,2]
[393391873,1762576237745,-4470.48707646,0.000178,2]
[393391874,1762576237853,-899.99999993,0.000178,2]
[393391875,1762576237866,-288.4867537,0.000178,2]
[393391890,1762576239770,-29173.55769592,0.000178,2]
[393391892,1762576239879,-4945.96220338,0.000178,2]
[393391903,1762576239988,-5135.62,0.000178,2]
[393391910,1762576240044,-50206.97787602,0.000178,2]
[393391989,1762576243159,-538.19880616,0.00017799,2]
[393391990,1762576243168,-91141.80544166,0.000178,2]
[393391991,1762576243214,-816.0,0.000178,2]
[393391998,1762576245972,-20421.47177425,0.000178,2]
[393391999,1762576245984,-1115.41441,0.000178,2]
[393392000,1762576246187,-2565.97698412,0.000178,2]
[393392001,1762576246353,-2374.82882,0.000178,2]
[393392005,1762576384540,159.74,8.598e-05,2]
[393392006,1762576384962,159.74,9.424e-05,2]
[393392007,1762576384998,159.74,0.0001025,2]
[393392008,1762576385123,159.74,0.00011076,2]
[393392009,1762576385326,159.74,0.00011902,2]
[393392010,1762576385508,159.74,0.00012728,2]
[393392011,1762576385705,159.74,0.00013555,2]
[393392012,1762576385908,159.74,0.00014381,2]
[393392013,1762576396121,-159.74,0.00015207,2]
[393392014,1762576396144,-93.43005063,0.00016033,2]
[393392015,1762576399123,-66.30994937,0.00016033,2]
[393392016,1762576399147,-160.77005063,0.000161,2]
[393392017,1762576412099,500.0,0.00026157,120]
[393392018,1762576412513,500.0,0.00028701,120]
[393392019,1762576663332,5050.0,0.0003905,38]
[393392020,1762576672340,395.95,0.00013699,2]
[393392022,1762576920776,-160.21090965,0.00015767,2]
[393392023,1762576983007,50000.0,0.00039055,38]
[393392024,1762577008261,500.0,0.00026163,120]
[393392025,1762577115830,-6.44909035,0.00015767,2]
[393392026,1762577115855,-195.0,0.0001585,2]
[393392027,1762577115879,-138.34,0.00015933,2]
[393392028,1762577131582,437.15,0.00015,7]
[393392029,1762577157212,2048.56,0.00039055,120]
[393392030,1762577157436,2048.56,0.00039055,120]
[393392031,1762577157678,2048.56,0.00039055,120]
[393392032,1762577157944,2048.56,0.00039055,120]
[393392033,1762577158199,2048.56,0.00039055,120]
[393392034,1762577158461,2048.56,0.00039055,120]
[393392035,1762577158727,2048.56,0.00039055,120]
[393392036,1762577158982,2048.56,0.00039055,120]
[393392037,1762577159245,2048.56,0.00039055,120]
[393392038,1762577159503,2048.56,0.00039055,120]
[393392039,1762577160088,2048.56,0.00039055,120]
[393392040,1762577160339,2048.56,0.00039055,120]
[393392041,1762577160636,2048.56,0.00039055,120]
[393392042,1762577160879,2048.56,0.00039055,120]
[393392043,1762577161114,2048.56,0.00039055,120]
[393392044,1762577161718,2048.56,0.00039055,120]
[393392045,1762577161991,2048.56,0.00039055,120]
[393392046,1762577162259,2048.56,0.00039055,120]
[393392047,1762577162502,2048.56,0.00039055,120]
[393392048,1762577162739,2048.56,0.00039055,120]
[393392049,1762577163653,2048.56,0.00039055,120]
[393392050,1762577163693,2048.56,0.00039055,120]
[393392051,1762577163733,2048.56,0.00039055,120]
[393392052,1762577163825,2048.68887662,0.00039055,120]
[393392064,1762577431927,-166.66,0.00016099,2]
[393392065,1762577431938,-361.66,0.00016099,2]
[393392066,1762577431948,-339.22994937,0.000161,2]
[393392067,1762577431958,-166.66,0.00016431,2]
[393392068,1762577431968,-1000.0,0.00016439,2]
[393392069,1762577431982,-5888.0,0.00016607,2]
[393392071,1762577431992,-1200.0,0.00016654,2]
[393392072,1762577432002,-200.0,0.00016655,2]
[393392073,1762577432012,-166.66,0.00016763,2]
[393392074,1762577432022,-159.74,0.00016859,2]
[393392075,1762577432034,-168.0,0.00016873,2]
[393392076,1762577432044,-168.0,0.00016897,2]
[393392077,1762577432054,-300.0,0.00016903,2]
[393392078,1762577432064,-300.0,0.00016903,2]
[393392079,1762577432075,-500.0,0.00016904,2]
[393392080,1762577432084,-500.0,0.00016986,2]
[393392081,1762577432094,-1200.0,0.00016998,2]
[393392082,1762577432104,-168.0,0.00016999,2]
[393392083,1762577432116,-168.0,0.00017,2]
[393392084,1762577432126,-168.0,0.00017078,2]
[393392085,1762577432136,-166.66,0.00017095,2]
[393392086,1762577432146,-186.99,0.00017132,2]
[393392087,1762577432155,-569.0,0.00017233,2]
[393392088,1762577432165,-168.0,0.00017284,2]
[393392089,1762577432175,-168.0,0.00017303,2]
[393392090,1762577432185,-221.8861932,0.00017309,2]
[393392091,1762577432194,-550.0,0.00017335,2]
[393392092,1762577432204,-195.0,0.00017344,2]
[393392093,1762577432213,-168.0,0.00017345,2]
[393392094,1762577432223,-2100.0,0.000174,6]
[393392095,1762577432233,-166.66,0.00017427,2]
[393392096,1762577432242,-4300.0,0.000175,6]
[393392097,1762577432252,-931.52849247,0.00017526,2]
[393392098,1762577432261,-290.32934948,0.00017526,2]
[393392099,1762577432271,-2321.8482,0.00017592,2]
[393392100,1762577432280,-6500.0,0.000176,6]
[393392101,1762577432289,-1396.05367,0.0001762,2]
[393392102,1762577432299,-1486.19280872,0.0001763,2]
[393392103,1762577432309,-2500.0,0.00017632,2]
[393392104,1762577432318,-17263.75309514,0.00017632,2]
[393392105,1762577432328,-10351.57687776,0.00017633,2]
[393392106,1762577432338,-418.48443586,0.00017633,2]
[393392107,1762577432352,-446.23192537,0.00017633,2]
[393392108,1762577432362,-2141.1976,0.00017633,2]
[393392109,1762577432371,-17263.75309507,0.00017662,2]
[393392110,1762577432381,-10351.57687769,0.00017663,2]
[393392111,1762577432391,-17263.75309507,0.00017692,2]
[393392112,1762577432400,-10351.57687769,0.00017692,2]
[393392113,1762577432410,-1000.0,0.000177,2]
[393392114,1762577432419,-8700.0,0.000177,6]
[393392115,1762577432430,-250.0,0.00017709,2]
[393392116,1762577432440,-195.0,0.00017709,2]
[393392117,1762577432452,-5000.0,0.00017711,2]
[393392118,1762577432462,-17263.75309507,0.00017721,2]
[393392119,1762577432472,-10351.57687769,0.00017722,2]
[393392120,1762577432490,-151.0,0.00017725,2]
[393392121,1762577432499,-500.0,0.00017727,2]
[393392122,1762577432509,-500.0,0.00017727,2]
[393392123,1762577432519,-500.0,0.00017727,2]
[393392124,1762577432528,-500.0,0.00017727,2]
[393392125,1762577432538,-500.0,0.00017727,2]
[393392126,1762577432552,-500.0,0.00017727,2]
[393392127,1762577432561,-500.0,0.00017727,2]
[393392128,1762577432571,-500.0,0.00017727,2]
[393392129,1762577432581,-500.0,0.00017727,2]
[393392130,1762577432590,-500.0,0.00017727,2]
[393392131,1762577432600,-633.55668206,0.00017727,2]
[393392132,1762577432609,-500.0,0.00017727,2]
[393392133,1762577432619,-500.0,0.00017727,2]
[393392134,1762577432628,-500.0,0.00017727,2]
[393392135,1762577432637,-500.0,0.00017727,2]
[393392136,1762577432647,-500.0,0.00017727,2]
[393392137,1762577432657,-500.0,0.00017727,2]
[393392138,1762577432667,-500.0,0.00017727,2]
[393392139,1762577432677,-500.0,0.00017727,2]
[393392140,1762577432686,-500.0,0.00017727,2]
[393392141,1762577432696,-500.0,0.00017727,2]
[393392142,1762577432706,-500.0,0.00017727,2]
[393392143,1762577432715,-927.63,0.00017728,2]
[393392144,1762577432725,-22206.58,0.00017728,2]
[393392145,1762577432734,-16649.74,0.00017728,2]
[393392146,1762577432748,-9999.99,0.00017728,2]
[393392147,1762577432757,-151.0,0.0001773,2]
[393392148,1762577432767,-291.0024606,0.0001773,2]
[393392149,1762577432777,-500.0,0.00017733,2]
[393392150,1762577432787,-500.0,0.00017733,2]
[393392151,1762577432796,-500.0,0.00017733,2]
[393392152,1762577432805,-500.0,0.00017733,2]
[393392153,1762577432815,-500.0,0.00017733,2]
[393392154,1762577432825,-505.81202536,0.00017733,2]
[393392155,1762577432835,-504.46223278,0.00017733,2]
[393392156,1762577432845,-500.0,0.00017733,2]
[393392157,1762577432854,-500.0,0.00017733,2]
[393392158,1762577432864,-500.0,0.00017733,2]
[393392159,1762577432873,-500.0,0.00017733,2]
[393392160,1762577432882,-518.40919141,0.00017733,2]
[393392161,1762577432892,-500.0,0.00017733,2]
[393392162,1762577432901,-510.52046555,0.00017733,2]
[393392163,1762577432910,-500.0,0.00017733,2]
[393392164,1762577432921,-580.0728714,0.00017733,2]
[393392165,1762577432933,-502.08330674,0.00017733,2]
[393392166,1762577432942,-500.0,0.00017733,2]
[393392167,1762577432951,-53369.60641296,0.00017733,2]
[393392168,1762577433442,-23024.32457665,0.00017733,2]
[393392169,1762577436648,-457.07728775,0.00017733,2]
[393392170,1762577436704,-224127.61110722,0.00017733,2]
[393392171,1762577436716,-13079.31949131,0.00017733,2]
[393392217,1762577438109,-3697.32343426,0.00017733,2]
[393392219,1762577438122,-3384.38189925,0.00017733,2]
[393392297,1762577440180,-9902.01496033,0.00017733,2]
[393392298,1762577440235,-868.5,0.00017733,2]
[393392303,1762577443100,-209.27044626,0.00017732,2]
[393392304,1762577443115,-150.0,0.00017732,2]
[393392305,1762577443130,-500.0,0.00017732,2]
[393392306,1762577443143,-912.70607569,0.00017733,2]
[393392307,1762577443159,-5550.98398515,0.00017733,2]
[393392318,1762577446454,-500.0,0.00017732,2]
[393392319,1762577446467,-9924.09160231,0.00017733,2]
[393392320,1762577446505,-872.59327,0.00017733,2]
[393392325,1762577583096,500.0,0.00039055,120]
[393392326,1762577606663,500.0,0.00027983,120]
[393392327,1762577838970,470.0,0.00016,4]
[393392328,1762578207887,500.0,0.00025208,120]
[393392329,1762578208441,500.0,0.00027208,120]
[393392330,1762578208811,500.0,0.00029208,120]
[393392331,1762578277060,178.54,0.00013124,2]
[393392334,1762578632192,-773.15,0.00016438,2]
[393392335,1762578632203,-621.44,0.00016438,2]
[393392336,1762578632214,-250.0,0.00016528,2]
[393392337,1762578632224,-224.77588959,0.000167,2]
[393392338,1762578632235,-740.19398881,0.00016761,2]
[393392339,1762578632247,-364.81497449,0.00016761,2]
[393392340,1762578632265,-94.9910367,0.00016761,2]
[393392341,1762578632275,-2104.59775752,0.00016761,2]
[393392342,1762578632287,-3740.34224248,0.00016761,2]
[393392343,1762578632297,-500.0,0.00016764,2]
[393392344,1762578632307,-150.0,0.0001679,2]
[393392345,1762578632317,-300.0,0.00016829,2]
[393392346,1762578632328,-300.0,0.00016829,2]
[393392347,1762578632338,-999.0,0.00016831,3]
[393392348,1762578632348,-2724.06,0.00016845,2]
[393392349,1762578632358,-1998.57575398,0.00017,2]
[393392350,1762578632371,-3372.85953142,0.00017,2]
[393392351,1762578632383,-11192.71936345,0.00017,2]
[393392352,1762578632417,-30772.64986901,0.00017,2]
[393392354,1762578632429,-1993.92783824,0.00017023,2]
[393392357,1762578632439,-1993.92783825,0.00017023,2]
[393392359,1762578632449,-345.0,0.00017068,2]
[393392361,1762578632462,-166.66,0.00017119,2]
[393392363,1762578632472,-193.91,0.00017169,2]
[393392365,1762578632483,-168.0,0.00017358,2]
[393392367,1762578632495,-2300.0,0.000174,6]
[393392369,1762578632506,-221.8861932,0.00017424,2]
[393392371,1762578632516,-893.73840764,0.00017445,2]
[393392374,1762578632526,-4700.0,0.000175,6]
[393392376,1762578632541,-151.0,0.00017529,2]
[393392378,1762578632551,-13970.92248417,0.00017532,2]
[393392380,1762578632562,-1000.0,0.00017532,2]
[393392382,1762578632572,-5000.0,0.00017532,2]
[393392384,1762578632582,-384.95558832,0.00017533,2]
[393392387,1762578632592,-9825.22631394,0.00017533,2]
[393392390,1762578632602,-13970.92248417,0.00017573,2]
[393392393,1762578632612,-9825.2263139,0.00017574,2]
[393392395,1762578632621,-7100.0,0.000176,6]
[393392397,1762578632632,-13970.92248417,0.00017614,2]
[393392399,1762578632642,-9825.2263139,0.00017615,2]
[393392401,1762578632652,-163.37,0.00017622,2]
[393392403,1762578632662,-151.0,0.00017628,2]
[393392405,1762578632674,-151.0,0.00017629,2]
[393392408,1762578632683,-500.0,0.00017631,2]
[393392410,1762578632693,-500.0,0.00017631,2]
[393392412,1762578632703,-500.0,0.00017631,2]
[393392414,1762578632714,-500.0,0.00017631,2]
[393392416,1762578632724,-923.67,0.00017631,2]
[393392418,1762578632738,-500.0,0.00017631,2]
[393392420,1762578632748,-500.0,0.00017631,2]
[393392422,1762578632758,-500.0,0.00017631,2]
[393392425,1762578632768,-500.0,0.00017631,2]
[393392427,1762578632777,-500.0,0.00017631,2]
[393392429,1762578632787,-500.0,0.00017631,2]
[393392430,1762578632797,-500.0,0.00017631,2]
[393392432,1762578632807,-274.68975984,0.00017631,2]
[393392434,1762578632817,-500.0,0.00017631,2]
[393392436,1762578632828,-219.32099943,0.00017631,2]
[393392438,1762578632838,-500.0,0.00017631,2]
[393392440,1762578632851,-500.0,0.00017631,2]
[393392442,1762578632861,-500.0,0.00017631,2]
[393392444,1762578632871,-500.0,0.00017631,2]
[393392446,1762578632882,-299.1950919,0.00017631,2]
[393392448,1762578632891,-500.0,0.00017631,2]
[393392449,1762578632902,-500.0,0.00017631,2]
[393392450,1762578632912,-500.0,0.00017631,2]
[393392451,1762578632922,-500.0,0.00017631,2]
[393392452,1762578632934,-500.0,0.00017631,2]
[393392453,1762578632944,-500.0,0.00017631,2]
[393392454,1762578632955,-500.0,0.00017631,2]
[393392455,1762578632966,-500.0,0.00017631,2]
[393392456,1762578632976,-500.0,0.00017631,2]
[393392457,1762578632986,-500.0,0.00017631,2]
[393392458,1762578632996,-500.0,0.00017631,2]
[393392459,1762578633006,-500.0,0.00017631,2]
[393392460,1762578633016,-500.0,0.00017631,2]
[393392461,1762578633026,-500.0,0.00017631,2]
[393392462,1762578633036,-500.0,0.00017631,2]
[393392463,1762578633046,-500.0,0.00017631,2]
[393392464,1762578633056,-277.75579298,0.00017631,2]
[393392465,1762578633068,-500.0,0.00017631,2]
[393392466,1762578633087,-500.0,0.00017631,2]
[393392467,1762578633097,-500.0,0.00017631,2]
[393392468,1762578633107,-500.0,0.00017631,2]
[393392469,1762578633117,-500.0,0.00017631,2]
[393392470,1762578633127,-500.0,0.00017631,2]
[393392471,1762578633137,-500.0,0.00017631,2]
[393392472,1762578633147,-500.0,0.00017631,2]
[393392473,1762578633157,-500.0,0.00017631,2]
[393392474,1762578633167,-500.0,0.00017631,2]
[393392475,1762578633176,-500.0,0.00017631,2]
[393392476,1762578633186,-500.0,0.00017631,2]
[393392477,1762578633196,-500.0,0.00017631,2]
[393392478,1762578633206,-500.0,0.00017631,2]
[393392479,1762578633216,-500.0,0.00017631,2]
[393392480,1762578633226,-500.0,0.00017631,2]
[393392481,1762578633237,-500.0,0.00017631,2]
[393392482,1762578633246,-500.0,0.00017631,2]
[393392483,1762578633256,-500.0,0.00017631,2]
[393392484,1762578633266,-500.0,0.00017631,2]
[393392485,1762578633276,-500.0,0.00017631,2]
[393392486,1762578633286,-500.0,0.00017631,2]
[393392487,1762578633297,-500.0,0.00017631,2]
[393392488,1762578633308,-500.0,0.00017631,2]
[393392489,1762578633318,-500.0,0.00017631,2]
[393392490,1762578633343,-500.0,0.00017631,2]
[393392491,1762578633354,-513.82438374,0.00017631,2]
[393392492,1762578633365,-513.82438374,0.00017631,2]
[393392493,1762578633376,-513.82438374,0.00017631,2]
[393392494,1762578633387,-513.82438374,0.00017631,2]
[393392495,1762578633397,-513.82438374,0.00017631,2]
[393392496,1762578633407,-513.82438374,0.00017631,2]
[393392497,1762578633422,-513.82438374,0.00017631,2]
[393392498,1762578633432,-513.82438374,0.00017631,2]
[393392499,1762578633443,-513.82438374,0.00017631,2]
[393392500,1762578633453,-513.82438374,0.00017631,2]
[393392501,1762578633465,-513.82438374,0.00017631,2]
[393392502,1762578633475,-513.82438374,0.00017631,2]
[393392503,1762578633486,-513.82438374,0.00017631,2]
[393392504,1762578633498,-513.82438374,0.00017631,2]
[393392505,1762578633509,-513.82438374,0.00017631,2]
[393392506,1762578633520,-513.82438374,0.00017631,2]
[393392507,1762578633530,-513.82438374,0.00017631,2]
[393392508,1762578633540,-513.82438374,0.00017631,2]
[393392509,1762578633551,-513.82438374,0.00017631,2]
[393392510,1762578633561,-513.82438374,0.00017631,2]
[393392511,1762578633572,-513.82438374,0.00017631,2]
[393392512,1762578633582,-513.82438374,0.00017631,2]
[393392513,1762578633592,-513.82438374,0.00017631,2]
[393392514,1762578633603,-513.82438374,0.00017631,2]
[393392515,1762578633613,-513.82438374,0.00017631,2]
[393392516,1762578633623,-513.82438374,0.00017631,2]
[393392517,1762578633633,-513.82438374,0.00017631,2]
[393392518,1762578633644,-513.82438374,0.00017631,2]
[393392519,1762578633919,-513.82438374,0.00017631,2]
[393392520,1762578633931,-513.82438374,0.00017631,2]
[393392521,1762578633942,-513.82438374,0.00017631,2]
[393392522,1762578633952,-513.82438374,0.00017631,2]
[393392523,1762578633962,-513.82438374,0.00017631,2]
[393392524,1762578633972,-521.75377236,0.00017631,2]
[393392525,1762578633981,-521.75377236,0.00017631,2]
[393392526,1762578633991,-521.75377236,0.00017631,2]
[393392527,1762578634001,-521.75377236,0.00017631,2]
[393392528,1762578634011,-521.75377236,0.00017631,2]
[393392529,1762578634020,-521.75377236,0.00017631,2]
[393392530,1762578634030,-521.75377236,0.00017631,2]
[393392531,1762578634040,-521.75377236,0.00017631,2]
[393392532,1762578634050,-521.75377235,0.00017631,2]
[393392533,1762578634060,-343.1163474,0.00017631,2]
[393392534,1762578634070,-151.0,0.00017632,2]
[393392535,1762578634081,-154.583928,0.00017632,2]
[393392536,1762578634094,-183.90275,0.00017632,2]
[393392537,1762578634104,-183.90275,0.00017632,2]
[393392538,1762578634114,-151.0,0.00017632,2]
[393392539,1762578634124,-183.90275,0.00017632,2]
[393392540,1762578634134,-183.90275,0.00017632,2]
[393392541,1762578634144,-151.0,0.00017632,2]
[393392542,1762578634154,-151.0,0.00017632,2]
[393392543,1762578634163,-151.0,0.00017632,2]
[393392544,1762578634174,-151.0,0.00017632,2]
[393392545,1762578634184,-156.569554,0.00017632,2]
[393392546,1762578634193,-151.0,0.00017632,2]
[393392547,1762578634203,-151.0,0.00017632,2]
[393392548,1762578634213,-151.0,0.00017632,2]
[393392549,1762578634223,-156.569554,0.00017632,2]
[393392550,1762578634232,-275.13001,0.00017632,2]
[393392551,1762578634242,-272.463189,0.00017632,2]
[393392552,1762578634255,-151.0,0.00017632,2]
[393392553,1762578634265,-151.0,0.00017632,2]
[393392554,1762578634275,-156.569554,0.00017632,2]
[393392555,1762578634285,-151.0,0.00017632,2]
[393392556,1762578634294,-272.463189,0.00017632,2]
[393392557,1762578634304,-151.0,0.00017632,2]
[393392558,1762578634314,-156.569554,0.00017632,2]
[393392559,1762578634324,-151.0,0.00017632,2]
[393392560,1762578634334,-272.463189,0.00017632,2]
[393392561,1762578634344,-151.0,0.00017632,2]
[393392562,1762578634353,-151.0,0.00017632,2]
[393392563,1762578634363,-163.448837,0.00017632,2]
[393392564,1762578634373,-151.0,0.00017632,2]
[393392565,1762578634383,-272.463189,0.00017632,2]
[393392566,1762578634392,-1642.044974,0.00017632,2]
[393392567,1762578634402,-151.0,0.00017632,2]
[393392568,1762578634412,-163.448837,0.00017632,2]
[393392569,1762578634424,-1642.044974,0.00017632,2]
[393392570,1762578634434,-151.0,0.00017632,2]
[393392571,1762578634444,-1642.044974,0.00017632,2]
[393392572,1762578634453,-163.448837,0.00017632,2]
[393392573,1762578634466,-151.0,0.00017632,2]
[393392574,1762578634476,-191.331226,0.00017632,2]
[393392575,1762578634486,-163.448837,0.00017632,2]
[393392576,1762578634497,-1642.044974,0.00017632,2]
[393392577,1762578634507,-151.0,0.00017632,2]
[393392578,1762578634517,-153.660482,0.00017632,2]
[393392579,1762578634527,-152.705216,0.00017632,2]
[393392580,1762578634536,-151.0,0.00017632,2]
[393392581,1762578634546,-151.0,0.00017632,2]
[393392582,1762578634556,-151.0,0.00017632,2]
[393392583,1762578634566,-151.0,0.00017632,2]
[393392584,1762578634577,-261.568533,0.00017632,2]
[393392585,1762578634586,-151.0,0.00017632,2]
[393392586,1762578634596,-156.412736,0.00017632,2]
[393392587,1762578634608,-156.197021,0.00017632,2]
[393392588,1762578634620,-151.0,0.00017632,2]
[393392589,1762578634630,-152.530975,0.00017632,2]
[393392590,1762578634640,-151.0,0.00017632,2]
[393392591,1762578634649,-151.0,0.00017632,2]
[393392592,1762578634659,-151.0,0.00017632,2]
[393392593,1762578634669,-151.0,0.00017632,2]
[393392594,1762578634679,-151.0,0.00017632,2]
[393392595,1762578634689,-636.443312,0.00017632,2]
[393392596,1762578634699,-636.443312,0.00017632,2]
[393392597,1762578634709,-636.443312,0.00017632,2]
[393392598,1762578634718,-636.443312,0.00017632,2]
[393392599,1762578634728,-151.0,0.00017632,2]
[393392600,1762578634737,-1132.40706,0.00017632,2]
[393392601,1762578634747,-151.0,0.00017632,2]
[393392602,1762578634757,-151.0,0.00017632,2]
[393392603,1762578634767,-1132.40706,0.00017632,2]
[393392604,1762578634777,-151.0,0.00017632,2]
[393392605,1762578634787,-1132.40706,0.00017632,2]
[393392606,1762578634797,-151.0,0.00017632,2]
[393392607,1762578634807,-151.0,0.00017632,2]